bitfinex/quotes_BTCUSD_20241009
["timestamp","ask_amount","ask_price","bid_price","bid_amount"]
[1728495942050,0.260765,61856.0,61855.0,0.00164]
[1728495942293,0.44965627,61856.0,61855.0,0.00164]
[1728495942520,0.53750554,61856.0,61855.0,0.00164]
[1728495942764,0.35061427,61856.0,61855.0,0.00164]
[1728495943200,0.35261427,61856.0,61855.0,0.00164]
[1728495943417,0.35761427,61856.0,61855.0,0.00264]
[1728495944116,0.36061427,61856.0,61855.0,0.00264]
[1728495944346,0.38595344,61856.0,61855.0,0.00264]
[1728495944589,0.4739216,61856.0,61855.0,0.00264]
[1728495946588,0.37120417,61856.0,61855.0,0.00264]
[1728495947805,0.38395344,61856.0,61855.0,0.00264]
[1728495949487,0.37120417,61856.0,61855.0,0.00264]
[1728495949758,0.1021,61856.0,61855.0,0.00264]
[1728495950000,0.263765,61856.0,61855.0,0.00264]
[1728495950490,0.1021,61856.0,61855.0,0.00264]
[1728495950747,0.263765,61856.0,61855.0,0.00264]
[1728495951467,0.008,61856.0,61855.0,0.00264]
[1728495951712,0.008,61856.0,61855.0,0.164308]
[1728495951950,0.008,61856.0,61855.0,0.00264]
[1728495952170,0.161661,61858.0,61855.0,0.00164]
[1728495952403,0.484981,61859.0,61855.0,0.00164]
[1728495952690,0.484981,61859.0,61855.0,0.00564]
[1728495952897,0.005,61860.0,61855.0,0.00564]
[1728495953108,0.005,61860.0,61855.0,0.00164]
[1728495953314,0.323321,61859.0,61855.0,0.00364]
[1728495953522,0.161665,61856.0,61855.0,0.00364]
[1728495954620,0.346365,61856.0,61855.0,0.00364]
[1728495955073,0.346365,61856.0,61855.0,0.00164]
[1728495955717,0.36111427,61856.0,61855.0,0.00164]
[1728495956396,0.35911427,61856.0,61855.0,0.00164]
[1728495956644,0.51434776,61856.0,61855.0,0.00564]
[1728495956855,0.51634776,61856.0,61855.0,0.00564]
[1728495957063,0.51834776,61856.0,61855.0,0.00164]
[1728495957274,0.51634776,61856.0,61855.0,0.00164]
[1728495959026,0.54168681,61856.0,61855.0,0.00164]
[1728495959227,0.54168681,61856.0,61855.0,0.00364]
[1728495959669,0.54368681,61856.0,61855.0,0.00364]
[1728495960537,0.54168681,61856.0,61855.0,0.00364]
[1728495960741,0.54368681,61856.0,61855.0,0.00364]
[1728495960961,0.44333754,61856.0,61855.0,0.00364]
[1728495961184,0.02733905,61856.0,61855.0,0.00364]
[1728495961397,0.18900405,61856.0,61855.0,0.00364]
[1728495965158,0.02733905,61856.0,61855.0,0.42674564]
[1728495966101,0.02533905,61856.0,61855.0,0.42474564]
[1728495966327,0.02733905,61856.0,61855.0,0.00164]
[1728495966549,0.22406916,61856.0,61855.0,0.00264]
[1728495967829,0.22406916,61856.0,61855.0,0.00164]
[1728495968047,0.22506916,61856.0,61855.0,0.01264]
[1728495968252,0.22606916,61856.0,61855.0,0.02164]
[1728495968903,0.23106916,61856.0,61855.0,0.02164]
[1728495969662,0.20573011,61856.0,61855.0,0.02164]
[1728495970146,0.20273011,61856.0,61855.0,0.01264]
[1728495970385,0.38313011,61856.0,61855.0,0.01264]
[1728495971101,0.38313011,61856.0,61855.0,0.00164]
[1728495971102,0.38013011,61856.0,61855.0,0.00164]
[1728495971343,0.38213011,61856.0,61855.0,0.00464]
[1728495971584,0.43263075,61856.0,61855.0,0.00464]
[1728495971822,0.43263075,61856.0,61855.0,0.00164]
[1728495972047,0.44538002,61856.0,61855.0,0.00164]
[1728495972306,0.44538002,61856.0,61855.0,0.00264]
[1728495975415,0.70621766,61856.0,61855.0,0.00264]
[1728495975897,0.73155861,61856.0,61855.0,0.00264]
[1728495976116,0.73155861,61856.0,61855.0,0.00164]
[1728495976623,0.73455861,61856.0,61855.0,0.00164]
[1728495976842,0.74355861,61856.0,61855.0,0.00264]
[1728495977085,0.73080934,61856.0,61855.0,0.00264]
[1728495977340,0.35190659,61856.0,61855.0,0.00264]
[1728495978069,0.35390659,61856.0,61855.0,0.00264]
[1728495978271,0.33790659,61856.0,61855.0,0.00164]
[1728495978483,0.33790659,61856.0,61855.0,0.00264]
[1728495978484,0.45577075,61856.0,61855.0,0.00264]
[1728495978741,0.45577075,61856.0,61855.0,0.00164]
[1728495978963,0.46077075,61856.0,61855.0,0.00164]
[1728495979172,0.46277075,61856.0,61855.0,0.00164]
[1728495979385,0.35090659,61856.0,61855.0,0.00164]
[1728495979636,0.32556564,61856.0,61855.0,0.00164]
[1728495980065,0.275065,61856.0,61855.0,0.00164]
[1728495980279,0.013,61856.0,61855.0,0.00164]
[1728495981399,0.161665,61856.0,61855.0,0.00164]
[1728495981623,0.161664,61857.0,61855.0,0.00164]
[1728495981830,0.002,61856.0,61855.0,0.00164]
[1728495982503,0.04833424,61864.0,61861.0,0.16165]
[1728495982727,0.161644,61864.0,61861.0,0.161652]
[1728495983629,0.04833424,61865.0,61861.0,0.16165]
[1728495983840,0.161647,61863.0,61858.0,0.56567953]
[1728495984056,0.161647,61863.0,61858.0,0.72651717]
[1728495984294,0.04833424,61868.0,61867.0,0.161637]
[1728495984514,0.00082,61872.0,61868.0,0.323266]
[1728495984738,0.00082,61872.0,61870.0,0.161627]
[1728495984990,0.00082,61872.0,61868.0,0.323266]
[1728495985382,0.02615143,61872.0,61871.0,0.161626]
[1728495986409,0.02615143,61872.0,61870.0,0.161629]
[1728495986623,0.02615143,61872.0,61871.0,0.161626]
[1728495988110,0.02615143,61872.0,61871.0,0.32346364]
[1728495988338,0.02815143,61872.0,61871.0,0.32346364]
[1728495988578,0.02615143,61872.0,61871.0,0.32246364]
[1728495989067,0.02815143,61872.0,61871.0,0.32246364]
[1728495989305,0.02615143,61872.0,61871.0,0.32246364]
[1728495989805,0.00282,61872.0,61871.0,0.32246364]
[1728495990532,0.00282,61872.0,61871.0,0.58882717]
[1728495990796,0.00282,61872.0,61871.0,0.34646364]
[1728495991032,0.00282,61872.0,61871.0,0.42146364]
[1728495991295,0.00282,61872.0,61871.0,0.51916364]
[1728495991632,0.00282,61872.0,61871.0,0.51816364]
[1728495991892,0.00382,61872.0,61871.0,0.52416364]
[1728495992149,0.00182,61872.0,61871.0,0.52416364]
[1728495992384,0.00182,61872.0,61871.0,0.53116364]
[1728495992385,0.00282,61872.0,61871.0,0.53116364]
[1728495993120,0.00282,61872.0,61871.0,0.17383764]
[1728495993363,0.00282,61872.0,61871.0,0.16783764]
[1728495993364,0.034599,61872.0,61871.0,0.16783764]
[1728495993616,0.197222,61872.0,61871.0,0.013]
[1728495993866,0.164443,61872.0,61871.0,0.013]
[1728495994100,0.163443,61872.0,61871.0,0.007]
[1728495994571,0.162443,61872.0,61871.0,0.004]
[1728495995052,0.163443,61872.0,61871.0,0.006]
[1728495995293,0.18877282,61872.0,61871.0,0.001]
[1728495995547,0.18877282,61872.0,61871.0,0.004]
[1728495995803,0.2724711,61872.0,61871.0,0.004]
[1728495996775,0.18877282,61872.0,61871.0,0.003]
[1728495996999,0.19077282,61872.0,61871.0,0.003]
[1728495997673,0.02814982,61872.0,61865.0,0.24236353]
[1728495997857,0.323269,61868.0,61865.0,0.40320117]
[1728495998129,0.161649,61863.0,61860.0,0.161655]
[1728495998359,0.161649,61863.0,61861.0,0.16083764]
[1728495998583,0.16164,61866.0,61863.0,0.161647]
[1728495998800,0.161638,61867.0,61864.0,0.161644]
[1728495999035,0.161641,61866.0,61865.0,0.004]
[1728495999259,0.18697313,61866.0,61865.0,0.004]
[1728495999480,0.161643,61865.0,61861.0,0.32248764]
[1728495999695,0.001,61863.0,61861.0,0.16683764]
[1728495999910,0.0495924,61863.0,61862.0,0.16165]
[1728496000396,0.001,61863.0,61862.0,0.16165]
[1728496001049,0.161639,61866.0,61862.0,0.16165]
[1728496001281,0.162639,61866.0,61865.0,0.006]
[1728496001495,0.001,61866.0,61861.0,0.32248764]
[1728496001722,0.001,61863.0,61862.0,0.16865]
[1728496001933,0.002,61863.0,61862.0,0.17465]
[1728496002144,0.002,61863.0,61862.0,0.16865]
[1728496002366,0.002,61863.0,61862.0,0.013]
[1728496002596,0.1962747,61863.0,61862.0,0.013]
[1728496002821,0.1942747,61863.0,61861.0,0.16083764]
[1728496003263,0.1942747,61863.0,61862.0,0.00564]
[1728496003694,0.1942747,61863.0,61862.0,0.00164]
[1728496003908,0.1952747,61863.0,61862.0,0.00864]
[1728496004626,0.1962747,61863.0,61862.0,0.01464]
[1728496005991,0.22160857,61863.0,61862.0,0.01464]
[1728496006445,0.18898087,61863.0,61862.0,0.01464]
[1728496007130,0.18798087,61863.0,61862.0,0.00764]
[1728496007560,0.18898087,61863.0,61862.0,0.00164]
[1728496007772,0.18998087,61863.0,61862.0,0.00164]
[1728496008044,0.18698087,61863.0,61862.0,0.00164]
[1728496008264,0.32599957,61863.0,61862.0,0.00164]
[1728496008485,0.32999957,61863.0,61862.0,0.00164]
[1728496009598,0.3046657,61863.0,61862.0,0.00164]
[1728496009844,0.170647,61863.0,61862.0,0.00164]
[1728496012759,0.177647,61863.0,61862.0,0.00164]
[1728496012989,0.36993095,61863.0,61862.0,0.00164]
[1728496013210,0.46118849,61863.0,61862.0,0.00164]
[1728496013423,0.6219951,61863.0,61862.0,0.00164]
[1728496016082,0.69571792,61863.0,61862.0,0.00164]
[1728496016305,0.69771792,61863.0,61862.0,0.00164]
[1728496017102,0.64733309,61863.0,61862.0,0.00164]
[1728496017305,0.69771154,61863.0,61862.0,0.00164]
[1728496018290,0.64733309,61863.0,61862.0,0.00164]
[1728496018527,0.69770615,61863.0,61862.0,0.00164]
[1728496018785,0.64633309,61863.0,61862.0,0.00164]
[1728496018992,0.64533309,61863.0,61862.0,0.00164]
[1728496019695,0.6199951,61863.0,61862.0,0.00164]
[1728496020349,0.170647,61863.0,61862.0,0.00164]
[1728496021046,0.009,61863.0,61862.0,0.00164]
[1728496021256,0.009,61863.0,61862.0,0.16329]
[1728496022110,0.161643,61865.0,61862.0,0.16329]
[1728496022323,0.002,61863.0,61862.0,0.16329]
[1728496022710,0.323286,61865.0,61862.0,0.00564]
[1728496022911,0.2103388,61863.0,61862.0,0.00564]
[1728496023500,0.2103388,61863.0,61862.0,0.00764]
[1728496023705,0.2103388,61863.0,61862.0,0.00564]
[1728496023916,0.2103388,61863.0,61862.0,0.00164]
[1728496024129,0.2103388,61863.0,61862.0,0.00364]
[1728496024340,0.323281,61866.0,61862.0,0.00364]
[1728496024547,0.161647,61863.0,61862.0,0.00164]
[1728496024749,0.161647,61863.0,61862.0,0.00264]
[1728496025162,0.162647,61863.0,61862.0,0.00264]
[1728496025571,0.161647,61863.0,61862.0,0.00164]
[1728496026030,0.02533466,61866.0,61865.0,0.161642]
[1728496026260,0.02533466,61866.0,61865.0,0.32247964]
[1728496028299,0.02733466,61866.0,61865.0,0.32247964]
[1728496028526,0.03033466,61866.0,61865.0,0.32247964]
[1728496028757,0.03033466,61866.0,61862.0,0.00164]
[1728496028961,0.161647,61863.0,61862.0,0.00164]
[1728496029168,0.0151293,61863.0,61862.0,0.00164]
[1728496029376,0.1767763,61863.0,61862.0,0.00164]
[1728496030907,0.0151293,61863.0,61862.0,0.00164]
[1728496031154,0.1767763,61863.0,61862.0,0.00164]
[1728496031833,0.1767763,61863.0,61862.0,0.00364]
[1728496032982,0.0151293,61863.0,61862.0,0.00364]
[1728496034106,0.0151293,61863.0,61862.0,0.16529]
[1728496034320,0.0151293,61863.0,61862.0,0.00364]
[1728496034763,0.04046284,61863.0,61862.0,0.00364]
[1728496035233,0.04046288,61863.0,61862.0,0.00364]
[1728496035901,0.20210988,61863.0,61862.0,0.00364]
[1728496036814,0.04046288,61863.0,61862.0,0.00364]
[1728496037041,0.20210988,61863.0,61862.0,0.00364]
[1728496037260,0.18698054,61863.0,61862.0,0.00364]
[1728496037692,0.02533354,61863.0,61862.0,0.16529]
[1728496037911,0.02533354,61863.0,61862.0,0.32612764]
[1728496038135,0.02533354,61863.0,61862.0,0.59501891]
[1728496038356,0.02533354,61863.0,61862.0,0.61801891]
[1728496039087,0.002,61866.0,61862.0,0.61801891]
[1728496039088,0.002,61866.0,61862.0,0.37436891]
[1728496039318,0.002,61866.0,61865.0,0.184642]
[1728496039551,0.002,61866.0,61865.0,0.34871213]
[1728496039775,0.002,61866.0,61865.0,0.34547964]
[1728496040007,0.002,61866.0,61865.0,0.42747964]
[1728496040911,0.00082,61872.0,61871.0,0.161626]
[1728496041146,0.00082,61872.0,61871.0,0.32246364]
[1728496042768,0.00082,61872.0,61871.0,0.32746364]
[1728496042989,0.00182,61872.0,61871.0,0.33446364]
[1728496043658,0.02714965,61872.0,61871.0,0.33446364]
[1728496045235,0.04226178,61872.0,61871.0,0.33446364]
[1728496045928,0.24165673,61872.0,61871.0,0.012]
[1728496046158,0.25677077,61872.0,61871.0,0.012]
[1728496046842,0.43447077,61872.0,61871.0,0.012]
[1728496047309,0.41935673,61872.0,61871.0,0.012]
[1728496047528,0.41935673,61872.0,61862.0,0.00164]
[1728496047529,0.168647,61863.0,61862.0,0.00164]
[1728496047787,0.69047591,61863.0,61862.0,0.00164]
[1728496047994,0.70250007,61863.0,61862.0,0.00164]
[1728496048425,0.87823423,61863.0,61862.0,0.00164]
[1728496048854,0.87823423,61863.0,61862.0,0.00264]
[1728496048855,0.89223423,61863.0,61862.0,0.00264]
[1728496049097,1.05304084,61863.0,61862.0,0.00264]
[1728496049309,1.0395167,61863.0,61862.0,0.00164]
[1728496049764,1.02817979,61863.0,61862.0,0.00264]
[1728496050216,1.12489176,61863.0,61862.0,0.00264]
[1728496050427,1.02817979,61863.0,61862.0,0.00264]
[1728496050640,1.1117605,61863.0,61862.0,0.00364]
[1728496051057,1.1007605,61863.0,61862.0,0.00264]
[1728496051485,1.0977605,61863.0,61862.0,0.00264]
[1728496051740,1.03917979,61863.0,61862.0,0.00264]
[1728496051970,1.29709179,61863.0,61862.0,0.00264]
[1728496052185,1.15146279,61863.0,61862.0,0.00264]
[1728496052408,1.16013319,61863.0,61862.0,0.00264]
[1728496052877,1.03917979,61863.0,61862.0,0.00264]
[1728496053106,1.02517979,61863.0,61862.0,0.00264]
[1728496053368,1.03917979,61863.0,61862.0,0.00264]
[1728496053582,1.02817979,61863.0,61862.0,0.00164]
[1728496054040,1.04217979,61863.0,61862.0,0.00164]
[1728496055702,1.18837423,61863.0,61862.0,0.00164]
[1728496056169,1.06752134,61863.0,61862.0,0.00164]
[1728496057481,1.16417607,61863.0,61862.0,0.00164]
[1728496058547,1.06752134,61863.0,61862.0,0.00164]
[1728496059631,1.04217979,61863.0,61862.0,0.00164]
[1728496059877,1.11464822,61863.0,61862.0,0.00164]
[1728496060531,1.04217979,61863.0,61862.0,0.00164]
[1728496062097,0.007,61856.0,61855.0,0.00164]
[1728496062314,0.88579986,61856.0,61855.0,0.00164]
[1728496062528,1.91842779,61856.0,61855.0,0.00164]
[1728496062768,1.99089084,61856.0,61855.0,0.00164]
[1728496063674,1.94642779,61856.0,61855.0,1e-06]
[1728496064104,2.06726285,61856.0,61855.0,1e-06]
[1728496064325,1.94642779,61856.0,61855.0,1e-06]
[1728496064543,2.05313454,61856.0,61855.0,1e-06]
[1728496064755,2.06713454,61856.0,61855.0,1e-06]
[1728496065421,2.05312891,61856.0,61855.0,1e-06]
[1728496065644,1.93242779,61856.0,61855.0,1e-06]
[1728496066067,1.94642779,61856.0,61855.0,1e-06]
[1728496066283,1.93242779,61856.0,61855.0,1e-06]
[1728496066500,2.06828888,61856.0,61855.0,1e-06]
[1728496066730,0.443799,61843.0,61842.0,0.24318353]
[1728496066951,1.13055091,61843.0,61842.0,0.24318353]
[1728496067178,1.14329006,61843.0,61842.0,0.24318353]
[1728496067397,1.15835459,61843.0,61842.0,0.00082]
[1728496067832,1.18370334,61843.0,61842.0,0.00082]
[1728496068058,1.35850993,61843.0,61842.0,0.00082]
[1728496068686,1.01948693,61843.0,61842.0,0.00082]
[1728496068899,1.37866293,61843.0,61842.0,0.00082]
[1728496069111,1.39266293,61843.0,61842.0,0.00082]
[1728496069589,1.00813818,61843.0,61842.0,0.00082]
[1728496070012,1.00813352,61843.0,61842.0,0.00082]
[1728496070438,0.56286546,61843.0,61842.0,0.00082]
[1728496070666,0.20975887,61843.0,61842.0,0.00082]
[1728496071206,0.20975887,61843.0,61831.0,0.18689127]
[1728496071207,0.166736,61829.0,61823.0,0.000819]
[1728496071479,0.35562727,61829.0,61823.0,0.000819]
[1728496071727,0.36837306,61829.0,61823.0,0.000819]
[1728496072000,0.46837306,61829.0,61823.0,0.000819]
[1728496073219,0.78114621,61829.0,61823.0,0.000819]
[1728496073471,0.95258997,61829.0,61823.0,0.000819]
[1728496073980,0.96658997,61829.0,61823.0,0.000819]
[1728496074244,0.99194404,61829.0,61823.0,0.000819]
[1728496074802,0.93000028,61829.0,61823.0,0.000819]
[1728496075299,0.91525449,61829.0,61823.0,0.000819]
[1728496075556,0.91725449,61829.0,61823.0,0.000819]
[1728496076670,0.91525449,61829.0,61823.0,0.000819]
[1728496076931,0.66781898,61829.0,61823.0,0.000819]
[1728496079829,0.64246491,61829.0,61823.0,0.000819]
[1728496082896,0.66781735,61829.0,61823.0,0.000819]
[1728496086137,0.95226246,61829.0,61823.0,0.000819]
[1728496086345,1.11506907,61829.0,61823.0,0.000819]
[1728496087061,1.05704198,61829.0,61823.0,0.000819]
[1728496087534,1.05504198,61829.0,61823.0,0.000819]
[1728496088422,0.97184198,61829.0,61823.0,0.000819]
[1728496088627,0.92152396,61829.0,61823.0,0.000819]
[1728496089738,0.94650532,61829.0,61823.0,0.000819]
[1728496089945,0.89617152,61829.0,61823.0,0.000819]
[1728496090614,0.80327152,61829.0,61823.0,0.000819]
[1728496090828,0.64243388,61829.0,61823.0,0.000819]
[1728496091047,0.48162727,61829.0,61823.0,0.082319]
[1728496091260,0.194736,61829.0,61823.0,0.082319]
[1728496091910,0.180736,61829.0,61823.0,0.082319]
[1728496092123,0.189736,61829.0,61823.0,0.082319]
[1728496092568,0.189736,61829.0,61824.0,0.161748]
[1728496092802,0.189736,61829.0,61828.0,0.077519]
[1728496093064,0.175736,61829.0,61828.0,0.077519]
[1728496093273,0.189736,61829.0,61828.0,0.077519]
[1728496093683,0.175736,61829.0,61828.0,0.077519]
[1728496093882,0.186736,61829.0,61828.0,0.077519]
[1728496094120,0.172736,61829.0,61828.0,0.077519]
[1728496094376,0.011,61829.0,61828.0,0.077519]
[1728496094618,0.18087494,61829.0,61828.0,0.077519]
[1728496094821,0.18287494,61829.0,61828.0,0.077519]
[1728496095034,0.02113894,61829.0,61828.0,0.239258]
[1728496095257,0.02113894,61829.0,61828.0,0.40009564]
[1728496095473,0.02113894,61829.0,61828.0,0.42309564]
[1728496095474,0.006,61829.0,61828.0,0.42309564]
[1728496095690,0.006,61829.0,61828.0,0.077519]
[1728496095898,0.167736,61829.0,61828.0,0.077519]
[1728496096542,0.163736,61829.0,61828.0,0.077519]
[1728496096735,0.18708423,61829.0,61828.0,0.079519]
[1728496096878,0.02634823,61829.0,61828.0,0.079519]
[1728496097092,0.18808423,61829.0,61828.0,0.079519]
[1728496097287,0.18708423,61829.0,61828.0,0.079519]
[1728496097490,0.02534823,61829.0,61828.0,0.079519]
[1728496097688,0.18808423,61829.0,61828.0,0.081519]
[1728496097895,0.18908423,61829.0,61828.0,0.081519]
[1728496098182,0.02634823,61829.0,61828.0,0.081519]
[1728496098548,0.18808423,61829.0,61828.0,0.081519]
[1728496099102,0.02634823,61829.0,61828.0,0.081519]
[1728496099519,0.161736,61830.0,61828.0,0.077519]
[1728496099957,0.161736,61830.0,61828.0,0.079519]
[1728496100584,0.161736,61830.0,61828.0,0.077519]
[1728496101011,0.161736,61830.0,61828.0,0.078519]
[1728496102498,0.323457,61832.0,61828.0,0.240256]
[1728496102708,0.161728,61832.0,61829.0,0.161736]
[1728496102914,0.02534816,61830.0,61828.0,0.078519]
[1728496103123,0.02534816,61830.0,61829.0,0.161736]
[1728496103711,0.02534816,61830.0,61828.0,0.240255]
[1728496103919,0.02534816,61830.0,61829.0,0.161736]
[1728496104070,0.02534816,61830.0,61828.0,0.077519]
[1728496104523,0.02534816,61830.0,61828.0,0.239255]
[1728496104736,0.02534816,61830.0,61829.0,0.001]
[1728496104936,0.02534816,61830.0,61829.0,0.162736]
[1728496105568,0.02534816,61830.0,61829.0,0.32357364]
[1728496106040,0.02534816,61830.0,61829.0,0.32257364]
[1728496107203,0.02534816,61830.0,61829.0,0.32357364]
[1728496109662,0.161724,61834.0,61829.0,0.16183764]
[1728496109911,0.161723,61834.0,61830.0,0.64603364]
[1728496110145,0.161723,61834.0,61830.0,0.48430264]
[1728496110375,0.161727,61833.0,61830.0,0.32257064]
[1728496110615,0.4043148,61833.0,61830.0,0.16083764]
[1728496110863,0.161728,61832.0,61830.0,0.16083764]
[1728496111339,0.161731,61831.0,61830.0,0.16083764]
[1728496111602,0.161729,61832.0,61830.0,0.16083764]
[1728496111869,0.4043148,61833.0,61828.0,0.000819]
[1728496111870,0.161736,61829.0,61828.0,0.000819]
[1728496114576,0.161734,61830.0,61828.0,0.000819]
[1728496115729,0.02534893,61830.0,61828.0,0.000819]
[1728496115943,0.161736,61829.0,61828.0,0.000819]
[1728496116343,0.161736,61829.0,61828.0,0.002819]
[1728496116543,0.161736,61829.0,61828.0,0.000819]
[1728496116770,0.161736,61829.0,61828.0,0.001819]
[1728496117354,0.161736,61829.0,61828.0,0.000819]
[1728496117568,0.161736,61829.0,61828.0,0.002819]
[1728496118303,0.02534893,61830.0,61828.0,0.002819]
[1728496118593,0.161736,61829.0,61828.0,0.002819]
[1728496119495,0.161736,61829.0,61828.0,0.000819]
[1728496119697,0.161736,61829.0,61828.0,0.001819]
[1728496120124,0.161736,61829.0,61828.0,0.000819]
[1728496120345,0.161736,61829.0,61828.0,0.002819]
[1728496120788,0.323463,61831.0,61828.0,0.002819]
[1728496121080,0.161736,61829.0,61828.0,0.002819]
[1728496122262,0.161734,61830.0,61828.0,0.002819]
[1728496123208,0.42051,61831.0,61828.0,0.000819]
[1728496123472,0.161736,61829.0,61828.0,0.000819]
[1728496124201,0.161736,61829.0,61828.0,0.001819]
[1728496124433,0.161736,61829.0,61828.0,0.000819]
[1728496125413,0.161736,61829.0,61828.0,0.002819]
[1728496129314,0.02534868,61830.0,61828.0,0.002819]
[1728496129527,0.18708268,61830.0,61828.0,0.002819]
[1728496129756,0.161734,61830.0,61828.0,0.002819]
[1728496130320,0.161735,61830.0,61828.0,0.000819]
[1728496130564,0.161735,61830.0,61828.0,0.001819]
[1728496131048,0.0001,61832.0,61828.0,0.163556]
[1728496131316,0.161734,61830.0,61828.0,0.001819]
[1728496132894,0.0001,61832.0,61829.0,0.161734]
[1728496133111,0.0001,61832.0,61831.0,0.161731]
[1728496133328,0.0001,61832.0,61831.0,0.32256864]
[1728496133808,0.02544665,61832.0,61831.0,0.32256864]
[1728496134278,0.02644665,61832.0,61831.0,0.32256864]
[1728496134513,0.02544665,61832.0,61831.0,0.32256864]
[1728496134988,0.02644665,61832.0,61831.0,0.32256864]
[1728496135278,0.02544665,61832.0,61831.0,0.32256864]
[1728496135949,0.02644665,61832.0,61831.0,0.32256864]
[1728496136636,0.02644665,61832.0,61831.0,0.34756864]
[1728496139812,0.0011,61832.0,61831.0,0.16283764]
[1728496140027,0.162828,61832.0,61831.0,0.16283764]
[1728496140248,0.0011,61832.0,61831.0,0.16283764]
[1728496140990,0.0001,61832.0,61831.0,0.16083764]
[1728496141196,0.0071,61832.0,61831.0,0.16083764]
[1728496141652,0.0041,61832.0,61831.0,0.16083764]
[1728496141875,0.0041,61832.0,61831.0,0.32256864]
[1728496142106,0.0061,61832.0,61831.0,0.32256864]
[1728496143055,0.0552258,61832.0,61828.0,0.000819]
[1728496143266,0.0552258,61832.0,61828.0,0.32339464]
[1728496143267,0.2169558,61832.0,61828.0,0.32339464]
[1728496143477,0.2169558,61832.0,61828.0,0.16165664]
[1728496143478,0.161734,61830.0,61828.0,0.16165664]
[1728496144852,0.161731,61831.0,61828.0,0.32339364]
[1728496145094,0.02634817,61830.0,61828.0,0.32339364]
[1728496145365,0.02634817,61830.0,61829.0,0.161736]
[1728496145849,0.02634817,61830.0,61828.0,0.16165664]
[1728496146099,0.02634817,61830.0,61829.0,0.161736]
[1728496146584,0.02634817,61830.0,61828.0,0.32339364]
[1728496146825,0.02534817,61830.0,61829.0,0.161736]
[1728496147760,0.02634817,61830.0,61829.0,0.161736]
[1728496149856,0.001,61830.0,61829.0,0.161736]
[1728496150076,0.002,61830.0,61829.0,0.163736]
[1728496151374,0.002,61830.0,61829.0,0.002]
[1728496151628,0.2448054,61830.0,61829.0,0.002]
[1728496151932,0.4166054,61830.0,61829.0,0.002]
[1728496152889,0.44195471,61830.0,61829.0,0.002]
[1728496153150,0.161736,61829.0,61828.0,0.000819]
[1728496155272,0.34862727,61829.0,61828.0,0.000819]
[1728496156696,0.41341185,61829.0,61828.0,0.000819]
[1728496156912,0.50851185,61829.0,61828.0,0.000819]
[1728496157131,0.47976174,61829.0,61828.0,0.000819]
[1728496157352,0.74285301,61829.0,61828.0,0.000819]
[1728496157573,0.74283854,61829.0,61828.0,0.000819]
[1728496158027,0.74583941,61829.0,61828.0,0.000819]
[1728496158541,0.81166548,61829.0,61828.0,0.000819]
[1728496158782,0.338049,61824.0,61823.0,0.000819]
[1728496158995,0.57343979,61824.0,61823.0,0.000819]
[1728496159233,0.57544996,61824.0,61823.0,0.000819]
[1728496159464,0.69666482,61824.0,61823.0,0.000819]
[1728496159677,0.57544996,61824.0,61823.0,0.000819]
[1728496159915,0.74731077,61824.0,61823.0,0.000819]
[1728496160353,0.84428089,61824.0,61823.0,0.000819]
[1728496160581,0.46926465,61824.0,61823.0,0.000819]
[1728496160846,0.45174027,61824.0,61823.0,0.000819]
[1728496161061,0.014,61824.0,61823.0,0.162571]
[1728496162164,0.014,61824.0,61823.0,0.000819]
[1728496163697,0.014,61824.0,61823.0,0.56577217]
[1728496163923,0.014,61824.0,61823.0,0.32340864]
[1728496164136,0.03934952,61824.0,61823.0,0.32340864]
[1728496164823,0.03334952,61824.0,61823.0,0.32340864]
[1728496165448,0.02534952,61824.0,61823.0,0.32340864]
[1728496166392,0.02634952,61824.0,61823.0,0.32640864]
[1728496167037,0.02734952,61824.0,61823.0,0.32640864]
[1728496169740,0.002,61824.0,61823.0,0.32640864]
[1728496172863,0.02735018,61824.0,61823.0,0.32640864]
[1728496174569,0.2403568,61824.0,61823.0,0.003819]
[1728496174777,0.18909918,61824.0,61823.0,0.003819]
[1728496175631,0.18809918,61824.0,61823.0,0.000819]
[1728496176058,0.18809918,61824.0,61823.0,0.002819]
[1728496176889,0.18709918,61824.0,61823.0,0.002819]
[1728496177812,0.02535018,61824.0,61823.0,0.002819]
[1728496178039,0.18709918,61824.0,61823.0,0.002819]
[1728496179294,0.02535018,61824.0,61823.0,0.32540864]
[1728496179521,0.161737,61829.0,61824.0,0.323495]
[1728496179749,0.323464,61831.0,61825.0,0.16083764]
[1728496179974,0.161737,61829.0,61826.0,0.161743]
[1728496180184,0.32347,61830.0,61825.0,0.16083764]
[1728496180392,0.161743,61827.0,61825.0,0.16083764]
[1728496180596,0.161741,61827.0,61825.0,0.16083764]
[1728496181034,0.002,61829.0,61825.0,0.16083764]
[1728496181300,0.002,61829.0,61825.0,0.32258364]
[1728496181301,0.161739,61828.0,61825.0,0.32258364]
[1728496181500,0.32347,61830.0,61825.0,0.16083764]
[1728496181710,0.161742,61827.0,61825.0,0.16083764]
[1728496183030,0.18709167,61827.0,61825.0,0.16083764]
[1728496183513,0.02534967,61827.0,61825.0,0.32258264]
[1728496183975,0.02534967,61827.0,61825.0,0.32258364]
[1728496184626,0.02634967,61827.0,61825.0,0.32258364]
[1728496184852,0.18809167,61827.0,61825.0,0.16083764]
[1728496185082,0.02634967,61827.0,61826.0,0.161744]
[1728496185301,0.02634967,61827.0,61826.0,0.32581618]
[1728496185534,0.02634967,61827.0,61826.0,0.32258164]
[1728496185949,0.02534967,61827.0,61826.0,0.32258164]
[1728496186394,0.02634967,61827.0,61826.0,0.32258164]
[1728496187898,0.02734967,61827.0,61826.0,0.32258164]
[1728496188110,0.02634967,61827.0,61826.0,0.32258164]
[1728496188548,0.02734967,61827.0,61826.0,0.32558164]
[1728496189667,0.002,61827.0,61826.0,0.32558164]
[1728496192470,0.002,61827.0,61826.0,0.33349894]
[1728496192900,0.02734876,61827.0,61826.0,0.33349894]
[1728496196131,0.02734876,61827.0,61826.0,0.32558164]
[1728496198886,0.002,61827.0,61826.0,0.32558164]
[1728496199782,0.002,61827.0,61826.0,0.52808164]